fUST/lending_fUST_20260128
["ID","MTS","AMOUNT","RATE_DAILY","PERIOD"]
[403834360,1769578233082,-3092.96547559,0.00012589,2]
[403834361,1769578233094,-152.09,0.000126,2]
[403834362,1769578233104,-3207.40519818,0.00013137,2]
[403834363,1769578233116,-250.0,0.00013207,2]
[403834364,1769578233126,-500.0,0.00013273,2]
[403834365,1769578233138,-523.78631543,0.00013273,2]
[403834366,1769578233149,-500.0,0.00013273,2]
[403834367,1769578233160,-500.0,0.00013273,2]
[403834368,1769578233171,-500.0,0.00013273,2]
[403834369,1769578233182,-500.0,0.00013273,2]
[403834370,1769578233193,-152.09,0.000133,2]
[403834371,1769578233205,-864.0,0.00013469,2]
[403834372,1769578233216,-300.0,0.00013673,2]
[403834373,1769578233228,-3326.07919052,0.00013685,2]
[403834374,1769578233240,-500.0,0.00013698,2]
[403834375,1769578233251,-500.0,0.00013698,2]
[403834376,1769578233263,-500.0,0.00013698,2]
[403834377,1769578233274,-500.0,0.00013698,2]
[403834378,1769578233285,-500.0,0.00013698,2]
[403834379,1769578233296,-500.0,0.00013698,2]
[403834380,1769578233307,-500.0,0.00013698,2]
[403834381,1769578233318,-500.0,0.00013698,2]
[403834382,1769578233329,-500.0,0.00013698,2]
[403834383,1769578233341,-150.05296418,0.00013698,2]
[403834384,1769578233352,-532.61284177,0.00013698,2]
[403834385,1769578233363,-23526.8146484,0.00013699,2]
[403834386,1769578233374,-1000.0,0.00013699,2]
[403834387,1769578233384,-784.849588,0.00013699,2]
[403834388,1769578233395,-500.0,0.00013699,2]
[403834389,1769578233406,-250.18572055,0.00013699,2]
[403834390,1769578233416,-502.81381747,0.00013699,2]
[403834391,1769578233427,-500.0,0.00013699,2]
[403834392,1769578233437,-500.0,0.00013699,2]
[403834393,1769578233448,-500.0,0.00013699,2]
[403834394,1769578233459,-500.0,0.00013699,2]
[403834395,1769578233471,-500.0,0.00013699,2]
[403834396,1769578233481,-500.0,0.00013699,2]
[403834397,1769578233495,-195.685509,0.00013699,2]
[403834398,1769578233508,-567.94928355,0.00013699,2]
[403834399,1769578233519,-151.262815,0.00013699,2]
[403834400,1769578233533,-1002.23208146,0.00013821,2]
[403834401,1769578233543,-1000.0,0.00013821,2]
[403834402,1769578233554,-1000.0,0.00013821,2]
[403834403,1769578233566,-1000.0,0.00013821,2]
[403834404,1769578233577,-1000.0,0.00013821,2]
[403834405,1769578233589,-152.09,0.000139,2]
[403834406,1769578233604,-100000.0,0.0001399,2]
[403834407,1769578233615,-2682.82657858,0.00013993,2]
[403834408,1769578233627,-158.63,0.00014,2]
[403834409,1769578233639,-486.67144041,0.00014015,2]
[403834410,1769578233650,-600.0,0.00014221,2]
[403834411,1769578233660,-341.02216059,0.00014247,2]
[403834412,1769578233671,-964.41867485,0.00014247,2]
[403834413,1769578233681,-1000.0,0.00014247,2]
[403834414,1769578233692,-316.98737805,0.00014247,2]
[403834415,1769578233702,-1000.0,0.00014247,2]
[403834416,1769578233713,-1000.0,0.00014247,2]
[403834417,1769578233725,-1000.0,0.00014247,2]
[403834418,1769578233737,-1500.0,0.00014368,2]
[403834419,1769578233751,-1500.0,0.00014368,2]
[403834420,1769578233763,-1500.0,0.00014368,2]
[403834421,1769578233776,-152.09,0.000146,2]
[403834422,1769578233787,-600.0,0.00014768,2]
[403834423,1769578233797,-1000.98197639,0.00014795,2]
[403834424,1769578233807,-501.6271235,0.00014795,2]
[403834425,1769578233818,-1000.0,0.00014795,2]
[403834426,1769578233828,-1500.0,0.00014795,2]
[403834427,1769578233839,-1000.0,0.00014816,2]
[403834428,1769578233851,-1500.0,0.00014916,2]
[403834429,1769578233862,-2000.0,0.00014916,2]
[403834430,1769578233873,-2000.0,0.00014916,2]
[403834431,1769578233883,-160.23,0.00015,2]
[403834432,1769578233894,-1029.45955983,0.00015,10]
[403834433,1769578233904,-93596.70818836,0.00015,2]
[403834434,1769578233920,-445.54528704,0.00015,2]
[403834435,1769578233938,-9957.47836405,0.00015,2]
[403834436,1769578233975,9441.01,9.199e-05,2]
[403834437,1769578234000,10000.01,9.199e-05,2]
[403834438,1769578234027,1540.7484393,9.199e-05,2]
[403834450,1769578237757,-242.60493921,0.00010216,2]
[403834451,1769578237769,-19073.69257394,0.00015,2]
[403834452,1769578237817,-957.60240792,0.00015,2]
[403834453,1769578237830,-39004.09256029,0.00015,2]
[403834762,1769578243259,-954.04321579,0.0001485,2]
[403834763,1769578243269,-21363.40954406,0.00015,2]
[403834770,1769578245957,-30248.15037486,0.00015,2]
[403834773,1769578298368,1610.82,0.00030136,120]
[403834774,1769578322442,300.0,0.00010083,2]
[403834775,1769578340398,798.0,0.00030136,120]
[403834776,1769578341879,798.0,0.00030136,120]
[403834777,1769578344902,798.0,0.00030136,120]
[403834778,1769578347938,798.0,0.00030136,120]
[403834779,1769578350877,798.0,0.00030136,120]
[403834780,1769578376464,-300.0,0.00010285,2]
[403834781,1769578376498,-300.0,0.00010285,2]
[403834782,1769578376529,-300.0,0.00010285,2]
[403834783,1769578376560,-300.0,0.00010285,2]
[403834784,1769578376589,-300.0,0.00010285,2]
[403834785,1769578376619,-300.0,0.00010285,2]
[403834786,1769578376649,-300.0,0.00010285,2]
[403834787,1769578376679,-300.0,0.00010285,2]
[403834788,1769578376710,-300.0,0.00010285,2]
[403834789,1769578376741,-300.0,0.00010285,2]
[403834790,1769578376772,-300.0,0.00010285,2]
[403834791,1769578376803,-300.0,0.00010285,2]
[403834792,1769578376834,-300.0,0.00010285,2]
[403834793,1769578376865,-300.0,0.00010285,2]
[403834794,1769578376895,-300.0,0.00010285,2]
[403834795,1769578393862,-600.0,0.0001049,2]
[403834796,1769578564676,163.88525827,0.00034849,120]
[403834801,1769578808520,10000.01,0.00010701,2]
[403834802,1769578808544,10000.01,0.00010701,2]
[403834803,1769578808569,10000.01,0.00010701,2]
[403834804,1769578808596,7315.4165388,0.00010701,2]
[403834805,1769578871002,164.787,0.00034882,120]
[403834806,1769578903552,843.09,0.00034882,120]
[403834809,1769578993109,4275.7244729,0.0001042,2]
[403834812,1769579100326,300.0,0.00010418,2]
[403834813,1769579150803,305.64519166,0.00030136,120]
[403834819,1769579384771,375.4339968,0.00010478,2]
[403834825,1769579431760,-150.0,0.00011157,2]
[403834826,1769579431772,-150.0,0.00011157,2]
[403834827,1769579431781,-150.0,0.00011157,2]
[403834828,1769579431790,-483.0,0.00011157,2]
[403835127,1769579437856,-94.0,0.00011157,2]
[403835128,1769579437866,-339.25929775,0.00011225,2]
[403835129,1769579437875,-150.0,0.00011294,2]
[403835130,1769579437884,-150.0,0.00011294,2]
[403835131,1769579437894,-207.90929385,0.00011331,2]
[403835132,1769579437903,-153.0,0.00011402,2]
[403835133,1769579437912,-153.0,0.00011402,2]
[403835134,1769579437922,-153.0,0.00011402,2]
[403835135,1769579437931,-153.0,0.00011402,2]
[403835136,1769579437941,-153.0,0.00011402,2]
[403835137,1769579437950,-153.0,0.00011402,2]
[403835138,1769579437959,-153.0,0.00011402,2]
[403835139,1769579437968,-297.97748866,0.00011402,2]
[403835140,1769579437977,-201.93286099,0.00011422,2]
[403835141,1769579437987,-209.40437684,0.00011422,2]
[403835142,1769579437996,-217.15233878,0.00011422,2]
[403835143,1769579438005,-225.18697532,0.00011422,2]
[403835144,1769579438014,-151.0,0.00011422,2]
[403835145,1769579438023,-233.51889341,0.00011422,2]
[403835146,1769579438033,-151.0,0.00011422,2]
[403835147,1769579438042,-242.15909246,0.00011422,2]
[403835148,1769579438054,-151.0,0.00011422,2]
[403835149,1769579438064,-500.0,0.00011422,2]
[403835150,1769579438073,-151.0,0.00011422,2]
[403835151,1769579438083,-251.11897888,0.00011422,2]
[403835152,1769579438092,-500.0,0.00011422,2]
[403835153,1769579438102,-151.0,0.00011422,2]
[403835154,1769579438112,-260.4103811,0.00011422,2]
[403835155,1769579438121,-500.0,0.00011422,2]
[403835156,1769579438130,-151.0,0.00011422,2]
[403835157,1769579438140,-270.0455652,0.00011422,2]
[403835158,1769579438149,-500.0,0.00011422,2]
[403835159,1769579438159,-280.03725112,0.00011422,2]
[403835160,1769579438171,-500.0,0.00011422,2]
[403835161,1769579438180,-290.39862941,0.00011422,2]
[403835162,1769579438190,-500.0,0.00011422,2]
[403835163,1769579438198,-301.1433787,0.00011422,2]
[403835164,1769579438207,-500.0,0.00011422,2]
[403835165,1769579438217,-500.0,0.00011422,2]
[403835166,1769579438226,-500.0,0.00011422,2]
[403835167,1769579438235,-500.0,0.00011422,2]
[403835168,1769579438244,-500.0,0.00011422,2]
[403835169,1769579438253,-500.0,0.00011422,2]
[403835170,1769579438262,-250.0,0.00011422,2]
[403835171,1769579438271,-250.0,0.00011422,2]
[403835172,1769579438281,-250.0,0.00011422,2]
[403835173,1769579438290,-250.0,0.00011422,2]
[403835174,1769579438299,-2101.05054767,0.00011422,2]
[403835175,1769579438308,-250.0,0.00011422,2]
[403835176,1769579438318,-300.0,0.00011426,2]
[403835177,1769579438327,-22046.59545718,0.00011427,2]
[403835178,1769579438339,-27953.40454282,0.00011427,2]
[403835179,1769579438348,-300.95722936,0.00011427,2]
[403835180,1769579438358,-500.0,0.00011427,2]
[403835181,1769579438366,-500.0,0.00011427,2]
[403835182,1769579438376,-500.0,0.00011427,2]
[403835183,1769579438385,-500.0,0.00011427,2]
[403835184,1769579438394,-500.0,0.00011427,2]
[403835185,1769579438403,-189.98465313,0.00011427,2]
[403835186,1769579438411,-500.0,0.00011427,2]
[403835187,1769579438420,-500.0,0.00011427,2]
[403835188,1769579438429,-500.0,0.00011427,2]
[403835189,1769579438438,-500.0,0.00011427,2]
[403835190,1769579438448,-168.13498313,0.00011427,2]
[403835191,1769579438457,-500.0,0.00011427,2]
[403835192,1769579438466,-645.68027596,0.00011427,2]
[403835193,1769579438475,-500.0,0.00011427,2]
[403835194,1769579438488,-500.0,0.00011427,2]
[403835195,1769579438500,-500.0,0.00011427,2]
[403835196,1769579438509,-500.0,0.00011427,2]
[403835197,1769579438519,-500.0,0.00011427,2]
[403835198,1769579438528,-322.5,0.00011427,2]
[403835199,1769579438537,-326.04054055,0.00011427,2]
[403835200,1769579438547,-150.0,0.00011431,2]
[403835201,1769579438556,-348.0,0.00011431,2]
[403835202,1769579438565,-166.0,0.00011431,2]
[403835203,1769579438575,-348.0,0.00011431,2]
[403835204,1769579438584,-166.0,0.00011431,2]
[403835205,1769579438594,-348.0,0.00011431,2]
[403835206,1769579438603,-348.0,0.00011431,2]
[403835207,1769579438613,-348.0,0.00011431,2]
[403835208,1769579438622,-348.0,0.00011431,2]
[403835209,1769579438631,-348.0,0.00011431,2]
[403835210,1769579438640,-348.0,0.00011431,2]
[403835211,1769579438649,-348.0,0.00011431,2]
[403835212,1769579438659,-348.0,0.00011431,2]
[403835213,1769579438668,-348.0,0.00011431,2]
[403835214,1769579438677,-348.0,0.00011431,2]
[403835215,1769579438686,-348.0,0.00011431,2]
[403835216,1769579438695,-348.0,0.00011431,2]
[403835217,1769579438705,-348.0,0.00011431,2]
[403835218,1769579438714,-348.0,0.00011431,2]
[403835219,1769579438724,-348.0,0.00011431,2]
[403835220,1769579438733,-348.0,0.00011431,2]
[403835221,1769579438743,-348.0,0.00011431,2]
[403835222,1769579438752,-348.0,0.00011431,2]
[403835223,1769579438762,-348.0,0.00011431,2]
[403835224,1769579438775,-348.0,0.00011431,2]
[403835225,1769579438785,-348.0,0.00011431,2]
[403835226,1769579438794,-348.0,0.00011431,2]
[403835227,1769579438804,-348.0,0.00011431,2]
[403835228,1769579438815,-348.0,0.00011431,2]
[403835229,1769579438824,-348.0,0.00011431,2]
[403835230,1769579438834,-348.0,0.00011431,2]
[403835231,1769579438843,-348.0,0.00011431,2]
[403835232,1769579438854,-348.0,0.00011431,2]
[403835233,1769579438864,-348.0,0.00011431,2]
[403835234,1769579438874,-348.0,0.00011431,2]
[403835235,1769579438883,-348.0,0.00011431,2]
[403835236,1769579438893,-348.0,0.00011431,2]
[403835237,1769579438902,-348.0,0.00011431,2]
[403835238,1769579438912,-348.0,0.00011431,2]
[403835239,1769579438921,-348.0,0.00011431,2]
[403835240,1769579438931,-348.0,0.00011431,2]
[403835241,1769579438940,-348.0,0.00011431,2]
[403835242,1769579438949,-348.0,0.00011431,2]
[403835243,1769579438959,-348.0,0.00011431,2]
[403835244,1769579438968,-258.20619594,0.00011431,2]
[403835245,1769579438978,-150.0,0.00011568,2]
[403835246,1769579438987,-300.0,0.00011659,2]
[403835247,1769579438997,-300.0,0.00011659,2]
[403835248,1769579439006,-300.0,0.00011659,2]
[403835249,1769579439016,-300.0,0.00011659,2]
[403835250,1769579439026,-300.0,0.00011659,2]
[403835251,1769579439036,-300.0,0.00011659,2]
[403835252,1769579439045,-300.0,0.00011659,2]
[403835253,1769579439055,-300.0,0.00011659,2]
[403835254,1769579439064,-300.0,0.00011659,2]
[403835255,1769579439074,-300.0,0.00011659,2]
[403835256,1769579439083,-300.0,0.00011659,2]
[403835257,1769579439092,-300.0,0.00011659,2]
[403835258,1769579439101,-300.0,0.00011659,2]
[403835259,1769579439110,-300.0,0.00011659,2]
[403835260,1769579439120,-300.0,0.00011659,2]
[403835261,1769579439129,-600.0,0.00011659,2]
[403835262,1769579439139,-150.0,0.00011705,2]
[403835263,1769579439148,-557.29,0.00012329,2]
[403835264,1769579439158,-720.0,0.00012825,2]
[403835265,1769579439167,-400.32597135,0.00013225,2]
[403835266,1769579439177,-202.68824605,0.00013273,2]
[403835267,1769579439186,-500.0,0.00013273,2]
[403835268,1769579439195,-1000.0,0.00013699,2]
[403835269,1769579439203,-392.424794,0.00013699,2]
[403835270,1769579439211,-500.0,0.00013699,2]
[403835271,1769579439220,-397.56449848,0.00013699,2]
[403835272,1769579439229,-1000.0,0.00013821,2]
[403835273,1769579439239,-100000.0,0.0001399,2]
[403835274,1769579439248,-864.0,0.00014107,2]
[403835275,1769579439257,-252.01236839,0.00014247,2]
[403835276,1769579439266,-1500.0,0.00014368,2]
[403835277,1769579439275,-161.17730558,0.00014409,2]
[403835278,1769579439284,-212.0754544,0.00014409,2]
[403835279,1769579439295,-164.85404191,0.00014595,2]
[403835280,1769579439307,-25599.245706,0.00014644,2]
[403835281,1769579439316,-170.4917745,0.00014695,2]
[403835282,1769579439325,-5983.93840354,0.000147,2]
[403835283,1769579439335,-413.52706452,0.00014742,2]
[403835284,1769579439344,-151.0,0.000148,2]
[403835285,1769579439353,-164.85404191,0.000148,2]
[403835286,1769579439363,-204427.73067618,0.000149,2]
[403835287,1769579439375,-6298.74026498,0.000149,2]
[403835288,1769579439385,-580.52519946,0.000149,2]
[403835289,1769579439396,-2514.17811519,0.000149,2]
[403835290,1769579439407,-426.4761389,0.000149,2]
[403835329,1769579446071,-250.0,0.00011422,2]
[403835330,1769579446081,-250.0,0.00011422,2]
[403835331,1769579446090,-77.0,0.00011422,2]
[403835332,1769579617589,2436.24,0.00034882,120]
[403835353,1769580037129,-381.7223317,0.00013204,2]
[403835354,1769580037156,-607.0,0.00013204,2]
[403835355,1769580037181,-344.51698966,0.00013273,2]
[403835356,1769580037194,-155.48301034,0.00013273,2]
[403835357,1769580037203,-226.23932136,0.00013547,2]
[403835358,1769580037214,-111.38770171,0.00013547,2]
[403835359,1769580037223,-495.61229829,0.00013821,2]
[403835360,1769580037234,-500.0,0.00013821,2]
[403835361,1769580242409,203349.613226,0.00034861,120]
[403835384,1769580632006,-343.25078297,0.00013889,2]
[403835386,1769580632015,-618.0,0.00013889,2]
[403835387,1769580632024,-2000.0,0.000139,2]
[403835389,1769580632033,-2000.0,0.000139,2]
[403835391,1769580632042,-189.87680976,0.000139,2]
[403835393,1769580632053,-300.042,0.000139,2]
[403835435,1769580640303,-1510.08119024,0.000139,2]
[403835438,1769580640323,-2000.0,0.000139,2]
[403835440,1769580640332,-2000.0,0.000139,2]
[403835442,1769580640342,-2000.0,0.000139,2]
[403835444,1769580640351,-2000.0,0.000139,2]
[403835446,1769580640360,-2000.0,0.000139,2]
[403835448,1769580640369,-1876.75408901,0.000139,2]
[403836016,1769580646259,-123.24591099,0.000139,2]
[403836017,1769580646269,-1479.61166475,0.000139,2]
[403836018,1769580646280,-520.38833525,0.000139,2]
[403836019,1769580646289,-760.72382467,0.0001399,2]
[403836021,1769580845058,174.24,0.00010914,2]
[403836027,1769581303597,500.0,0.00034861,120]
[403836037,1769581686356,425.2323895,0.00010618,2]
[403836038,1769581692871,1930.43881781,0.0001,2]
[403836039,1769581701260,289.59992971,0.0001,2]
[403836040,1769581710907,1000.0,0.0001,2]
[403836041,1769581711662,7912.53388302,0.00034861,120]
[403836042,1769581717575,9000.01,0.0001,2]
[403836043,1769581717599,7845.32272611,0.0001,2]
[403836044,1769581718006,784.13706818,0.0001,2]
[403836048,1769581821475,-1602.85757574,0.00012661,2]
[403836217,1769581838418,-556.26545896,0.00012661,2]
[403836797,1769581846305,-933.01863588,0.00012661,2]
[403836799,1769581846315,-599.0,0.00012661,2]
[403836801,1769581846324,-220.08942018,0.00012789,2]
[403836928,1769582261465,500.0,0.00034861,120]
[403836929,1769582261698,500.0,0.00034861,120]
[403836930,1769582261947,500.0,0.00034861,120]
[403836931,1769582262196,552.85012927,0.00034861,120]
[403836952,1769582754504,160.0,0.000301,120]
[403837055,1769583038475,-933.01863588,0.00012338,2]
[403837056,1769583038484,-594.0,0.00012338,2]
[403837057,1769583038495,-336.38576731,0.000124,2]
[403837058,1769583038505,-1326.6643366,0.00012463,2]
[403837059,1769583038515,-79.91057982,0.00012789,2]
[403837060,1769583038523,-179.12345904,0.00013327,2]
[403837061,1769583038532,-683.356,0.00013327,2]
[403837062,1769583038541,-571.74225288,0.00013498,2]
[403837063,1769583038550,-202.5,0.00013498,2]
[403837064,1769583038558,-300.0,0.00013498,2]
[403837065,1769583038567,-1200.0,0.00013498,2]
[403837066,1769583038576,-5429.23485141,0.00013499,2]
[403837067,1769583038587,-1345.14629907,0.00013499,2]
[403837068,1769583038599,-8802.12457841,0.00013499,2]
[403837082,1769583040775,-347.88009211,0.00013499,2]
[403837870,1769583533534,1016.0,0.00030136,120]
[403837875,1769583620778,-338.81967194,0.00012609,2]
[403837876,1769583620804,-598.0,0.00012609,2]
[403837877,1769583636485,-151.0,0.000132,2]
[403837878,1769583636510,-205.83581059,0.00013224,2]
[403837879,1769583636534,-546.685,0.00013229,2]
[403837880,1769583636560,-195.92076716,0.00013361,2]
[403837881,1769583636584,-153.18779849,0.00013362,2]
[403837882,1769583636615,-155.27775801,0.00013399,2]
[403837883,1769583636715,-117.0118657,0.00013422,2]
[403837884,1769583644432,727.57,0.00030136,120]
[403837891,1769583666210,-183.0,0.00013421,2]
[403837892,1769583666237,-264.69766763,0.00013422,2]
[403837893,1769583666266,-12.51179899,0.00013422,2]
[403837894,1769583666314,-487.48820101,0.00013422,2]
[403837931,1769584129345,1334.45,0.0003487,120]
[403837932,1769584129599,1334.45,0.0003487,120]
[403837933,1769584129852,1334.45,0.0003487,120]
[403837934,1769584130085,1334.45,0.0003487,120]
[403837935,1769584130317,1334.45,0.0003487,120]
[403837936,1769584130569,1334.45,0.0003487,120]
[403837937,1769584130813,1334.45,0.0003487,120]
[403837938,1769584131081,1334.45,0.0003487,120]
[403837939,1769584131345,1334.45,0.0003487,120]
[403837940,1769584131587,1334.45,0.0003487,120]
[403837941,1769584131846,1334.45,0.0003487,120]
[403837942,1769584132099,1334.45,0.0003487,120]
[403837943,1769584132340,1334.45,0.0003487,120]
[403837944,1769584132585,1334.45,0.0003487,120]
[403837945,1769584132825,1334.45,0.0003487,120]
[403837946,1769584133065,1334.45,0.0003487,120]
[403837947,1769584133292,1334.45,0.0003487,120]
[403837948,1769584133542,1334.45,0.0003487,120]
[403837949,1769584133824,1334.45,0.0003487,120]
[403837950,1769584134061,1334.45,0.0003487,120]
[403837951,1769584134308,1334.45,0.0003487,120]
[403837952,1769584134556,1334.45,0.0003487,120]
[403837953,1769584134809,1334.45,0.0003487,120]
[403837954,1769584135064,1334.67188247,0.0003487,120]
[403837959,1769584180524,500.0,0.00034911,120]
[403837960,1769584180766,500.0,0.00034911,120]
[403837961,1769584181032,500.0,0.00034911,120]
[403837962,1769584181288,500.0,0.00034911,120]
[403837963,1769584181559,500.0,0.00034911,120]
[403837964,1769584181811,500.0,0.00034911,120]
[403837965,1769584182155,500.0,0.00034911,120]
[403837966,1769584182407,327.74444142,0.00034911,120]
[403837968,1769584202160,150.47,0.0001,2]
[403837969,1769584202468,150.47,0.000106,2]
[403837972,1769584223297,1000.0,0.0003,120]
[403837978,1769584232437,-150.47,0.000113,2]
[403837979,1769584232446,-111.758,0.000119,2]
[403837994,1769584238589,-38.712,0.000119,2]
[403837995,1769584238784,-298.3216847,0.00012015,2]
[403837996,1769584238798,-265.6434372,0.00012015,2]
[403837997,1769584238811,-323.3565628,0.00012015,2]
[403837998,1769584238820,-356.17541383,0.00012036,2]
[403837999,1769584238831,-179.9190046,0.00012057,2]
[403838000,1769584238841,-300.0,0.00012328,2]
[403838001,1769584238851,-300.0,0.00012328,2]
[403838002,1769584238861,-300.0,0.00012328,2]
[403838003,1769584238871,-3028.8,0.00012329,2]
[403838004,1769584238881,-3441.87,0.00012329,2]
[403838005,1769584238890,-1700.87535054,0.00012329,2]
[403838006,1769584238909,-541.086,0.00012329,2]
[403838007,1769584238920,-626.26864946,0.00012329,2]
[403838008,1769584238930,-919.32956914,0.00012329,2]
[403838050,1769584240878,-1470.86043086,0.00012329,2]
[403838052,1769584240887,-1991.82,0.00012329,2]
[403838054,1769584240897,-1659.85,0.00012329,2]
[403838056,1769584240906,-1383.21,0.00012329,2]
[403838058,1769584240915,-1152.68,0.00012329,2]
[403838060,1769584240925,-960.56,0.00012329,2]
[403838062,1769584240934,-800.47,0.00012329,2]
[403838064,1769584240944,-667.06,0.00012329,2]
[403838066,1769584240953,-555.88,0.00012329,2]
[403838068,1769584240962,-463.23,0.00012329,2]
[403838070,1769584240974,-386.03,0.00012329,2]
[403838072,1769584240982,-321.69,0.00012329,2]
[403838074,1769584240991,-50000.0,0.00012329,2]
[403838076,1769584241000,-268.08,0.00012329,2]
[403838078,1769584241009,-223.4,0.00012329,2]
[403838080,1769584241018,-186.16,0.00012329,2]
[403838082,1769584241027,-155.14,0.00012329,2]
[403838084,1769584241036,-775.7,0.00012329,2]
[403838086,1769584241045,-150.47,0.000125,2]
[403838088,1769584241053,-1815.52981434,0.00012524,2]
[403838090,1769584241062,-300.0,0.00012574,2]
[403838092,1769584241071,-300.0,0.00012574,2]
[403838094,1769584241080,-300.0,0.00012574,2]
[403838096,1769584241090,-300.0,0.00012574,2]
[403838098,1769584241099,-300.0,0.00012574,2]
[403838100,1769584241108,-300.0,0.00012574,2]
[403838102,1769584241118,-300.0,0.00012574,2]
[403838104,1769584241128,-300.0,0.00012574,2]
[403838107,1769584241138,-300.0,0.00012574,2]
[403838109,1769584241147,-300.0,0.00012574,2]
[403838111,1769584241156,-300.0,0.00012574,2]
[403838112,1769584241166,-300.0,0.00012574,2]
[403838114,1769584241176,-300.0,0.00012574,2]
[403838117,1769584241185,-300.0,0.00012574,2]
[403838118,1769584241195,-300.0,0.00012574,2]
[403838121,1769584241205,-600.0,0.00012824,2]
[403838122,1769584241214,-150.47,0.000131,2]
[403838125,1769584241224,-500.0,0.00013148,2]
[403838127,1769584241233,-500.0,0.00013148,2]
[403838128,1769584241241,-500.0,0.00013148,2]
[403838130,1769584241251,-153.90514756,0.00013148,2]
[403838133,1769584241260,-172.70087908,0.00013273,2]
[403838135,1769584241269,-503.52110681,0.00013273,2]
[403838136,1769584241278,-500.0,0.00013273,2]
[403838139,1769584241287,-500.0,0.00013273,2]
[403838141,1769584241299,-500.0,0.00013273,2]
[403838143,1769584241309,-510.73383861,0.00013273,2]
[403838145,1769584241318,-500.0,0.00013285,2]
[403838147,1769584241327,-500.0,0.00013285,2]
[403838149,1769584241336,-156.06270442,0.00013288,2]
[403838151,1769584241345,-151.0,0.000133,2]
[403838153,1769584241355,-500.0,0.00013321,2]
[403838155,1769584241364,-500.0,0.00013321,2]
[403838157,1769584241374,-500.0,0.00013321,2]
[403838159,1769584241383,-195.61507137,0.00013321,2]
[403838161,1769584241392,-500.0,0.00013321,2]
[403838163,1769584241401,-500.0,0.00013321,2]
[403838165,1769584241409,-500.0,0.00013321,2]
[403838167,1769584241418,-500.0,0.00013321,2]
[403838169,1769584241428,-500.0,0.00013321,2]
[403838171,1769584241437,-500.0,0.00013321,2]
[403838173,1769584241446,-500.0,0.00013321,2]
[403838175,1769584241455,-500.0,0.00013321,2]
[403838177,1769584241464,-500.0,0.00013321,2]
[403838179,1769584241473,-500.0,0.00013321,2]
[403838181,1769584241483,-500.0,0.00013321,2]
[403838183,1769584241492,-500.0,0.00013321,2]
[403838185,1769584241501,-500.0,0.00013321,2]
[403838188,1769584241510,-500.0,0.00013321,2]
[403838189,1769584241519,-500.0,0.00013321,2]
[403838191,1769584241528,-500.0,0.00013321,2]
[403838193,1769584241537,-500.0,0.00013321,2]
[403838195,1769584241546,-500.0,0.00013321,2]
[403838197,1769584241556,-404.89111266,0.00013321,2]
[403838199,1769584241565,-500.0,0.00013321,2]
[403838201,1769584241574,-500.0,0.00013321,2]
[403838203,1769584241583,-500.0,0.00013321,2]
[403838205,1769584241592,-500.0,0.00013321,2]
[403838207,1769584241601,-500.0,0.00013321,2]
[403838208,1769584241610,-616.30195411,0.00013321,2]